Cogmind - Beta 12 @@@ ROGUE MODE // 2023.09.13 @ 10:15:18 Player: DuckBoy Result: Destroyed by Y-45 Defender with Beam Rifle Performance ------------- Evolutions (2) 1000 Regions Visited (7) 1400 Robots Destroyed (101) 505 Value Destroyed (3984) 3984 Prototype IDs (1) 20 Alien Tech Used (0) 0 Bonus (1655) 1655 TOTAL SCORE: 8564 Bonus ------- High Alert Combat Kills 597 Follower Combat Kills 420 Entered Garrisons 400 Used RIF Installer 500 Friendly Fire -262 Cogmind --------- Core Integrity 0/550 Matter 300/300 Energy 98/100 System Corruption 12% Temperature Cool (9) Movement Core (50) Location -8/Garrison Parts ------- > --- POWER (2) -------- (None) > --- PROPULSION (2) --- (None) > --- UTILITY (3) ------ Relay Coupler [NC] (11) Relay Coupler [NC] (28) > --- WEAPON (4) ------- Remote Datajack > --- INVENTORY (5) ---- Authchip [R/Combat] Relay Coupler [NC] (32) Relay Coupler [NC] (25) Relay Coupler [Duelist] (29) Peak State ------------ > --- POWER ------------ Micro Nuclear Core Micro Nuclear Core > --- PROPULSION ------- Improved Treads Armored Treads > --- UTILITY ---------- Improved Heat Sink High-capacity Storage Unit System Shield > --- WEAPON ----------- Improved EM Pulse Cannon Improved EM Pulse Cannon Improved EM Pulse Cannon Flak Cannon > --- INVENTORY -------- Micro Nuclear Core Micro Nuclear Core Light Treads Light Treads Improved Treads Improved Heat Sink Improved Heat Sink Huge Storage Unit Heavy Armor Plating Hardened Medium Armor Plating Hacking Suite Authchip [R/Combat] Heavy Assault Rifle Heavy Assault Cannon EMP Blaster Rocket Launcher Rocket Launcher Rocket Launcher [Rating: 40] Favorites ----------- Power Micro Nuclear Core Engine Reinforced Deuterium Engine Power Core Micro Nuclear Core Propulsion Armored Treads Treads Armored Treads Wheel Armored Wheel Utility High-capacity Storage Unit Device Improved Heat Sink Storage High-capacity Storage Unit Hackware System Shield Protection Heavy Armor Plating Weapon Improved EM Pulse Cannon Energy Gun Medium Laser Energy Cannon Improved EM Pulse Cannon Ballistic Gun Heavy Assault Rifle Ballistic Cannon Flak Cannon Launcher Rocket Launcher Special Weapon Remote Datajack Build | -11 -10 -10 -9 -8 -8 -8 -8 ------- Run | Jun Mat Min Mat Mat Gar Mat Gar Slots Evolved 4 | . . . 2 2 . . . Power 1 | . . . 1 . . . . Propulsion . | . . . . . . . . Utility 1 | . . . . 1 . . . Weapon 2 | . . . 1 1 . . . Parts Attached 84 | 3 7 1 14 29 24 6 . Power 15 | . 3 . 3 6 3 . . Engine 10 | . 3 . 3 4 . . . Core 5 | . . . . 2 3 . . Reactor . | . . . . . . . . Propulsion 16 | 2 . . 2 5 7 . . Treads 10 | . . . 2 5 3 . . Leg . | . . . . . . . . Wheel 6 | 2 . . . . 4 . . Hover . | . . . . . . . . Flight . | . . . . . . . . Utility 18 | 1 1 . 3 4 5 4 . Device 5 | . . . 1 1 3 . . Storage 4 | 1 1 . 1 . 1 . . Processor . | . . . . . . . . Hackware 5 | . . . . 1 . 4 . Protection 4 | . . . 1 2 1 . . Artifact . | . . . . . . . . Weapon 35 | . 3 1 6 14 9 2 . Energy Gun 5 | . 1 . 1 3 . . . Energy Cannon 4 | . . . . 3 1 . . Ballistic Gun 4 | . 1 . . 1 2 . . Ballistic Cannon 6 | . . . 1 3 2 . . Launcher 13 | . 1 1 4 4 3 . . Special Weapon 3 | . . . . . 1 2 . Impact Weapon . | . . . . . . . . Slashing Weapon . | . . . . . . . . Piercing Weapon . | . . . . . . . . Special Melee Weapon . | . . . . . . . . Unidentified Prototypes 1 | . 1 . . . . . . Corrupted Parts 3 | . . . . . 3 . . System Corruption 10 | . . . . . 10 . . Parts Lost 34 | . . . 8 7 12 7 . Power 7 | . . . 2 2 2 1 . Propulsion 5 | . . . 2 . 2 1 . Utility 8 | . . . 1 . 3 4 . Weapon 14 | . . . 3 5 5 1 . Highest Loss Streak 7 | . . . 4 3 3 7 . To Critical Strikes . | . . . . . . . . Average Slot Usage (%) 78 | . 77 100 93 90 71 27 27 Engine 8 | . 12 14 21 6 6 . . Core 7 | . . . . 9 9 . . Treads 10 | . . . 6 17 10 . . Wheel 6 | . 28 28 12 . 6 . . Device 3 | . . . . 9 1 . . Storage 10 | . 20 28 16 9 9 . . Hackware 1 | . . . . 3 . 18 18 Protection 3 | . . . 1 3 5 . . Energy Gun 1 | . 8 2 10 1 . . . Energy Cannon 5 | . . . . 14 3 . . Ballistic Gun 3 | . 5 . . 2 4 . . Ballistic Cannon 7 | . . . 1 8 8 . . Launcher 7 | . 3 25 20 4 5 . . Naked Turns 12 | . . . . . . 12 . Heaviest Build 113 | 5 99 101 113 96 106 3 3 Greatest Support 46 | 26 26 26 40 46 43 3 3 Greatest Overweight (x) 29 | . 3 3 6 2 29 . . Average Overweight (x) 2 | . . 3 3 1 3 . . Largest Inventory Capacity 25 | 8 25 25 25 20 25 5 5 Average Capacity 20 | 7 14 25 23 20 20 5 5 Most Carried 25 | 7 15 17 25 20 25 5 4 Average Carried 17 | 4 9 16 19 19 17 4 4 Final Capacity 25 | 8 25 25 20 20 25 5 5 Final Carried 24 | 7 15 17 20 20 24 4 4 Class Distribution -------------------- 59% | Mutant 10% | Scavenger-Mutant 9% | Tank 8% | Bothacker-Mutant 4% | Bomber 4% | Scavenger-Tank 3% | Scavenger-Bomber Dominant Class ---------------- Mutant | -10/Materials Mutant | -10/Mines Mutant | -9/Materials Mutant | -8/Materials Mutant | -8/Garrison Bothacker-Mutant | -8/Materials Bothacker-Mutant | -8/Garrison Resources | -11 -10 -10 -9 -8 -8 -8 -8 ----------- Run | Jun Mat Min Mat Mat Gar Mat Gar Matter Collected 2916 | 230 . 93 342 680 1425 146 . Remotely . | . . . . . . . . Salvage Created 3768 | . . 113 721 1735 1199 . . Parts 198 | . . 9 52 97 40 . . Haulers Intercepted 4 | . . . 2 2 . . . Recyclers Shooed 3 | . . . . 3 . . . Parts Field Recycled . | . . . . . . . . Retrieved Matter . | . . . . . . . . Parts Self-Destructed . | . . . . . . . . Prevented . | . . . . . . . . Kills | -11 -10 -10 -9 -8 -8 -8 -8 ------- Run | Jun Mat Min Mat Mat Gar Mat Gar Combat Hostiles Destroyed 79 | . . 2 14 40 23 . . Guns 3 | . . . . 2 1 . . Cannons 41 | . . . 1 22 18 . . AOE 34 | . . 2 12 16 4 . . Classes Destroyed 15 | . . 1 7 5 2 . . Worker 1 | . . . 1 . . . . Builder 4 | . . . 1 3 . . . Hauler 4 | . . . 2 2 . . . Recycler 2 | . . . . 2 . . . Operator 2 | . . . 1 1 . . . Watcher 7 | . . . 3 4 . . . Swarmer 23 | . . . 7 13 3 . . Grunt 31 | . . . 3 19 9 . . Brawler 1 | . . . . 1 . . . Duelist 4 | . . . . 1 3 . . Sentry 12 | . . 2 4 4 2 . . Specialist 1 | . . . . . 1 . . Hunter 5 | . . . . 1 4 . . Programmer 1 | . . . . . 1 . . Heavy 1 | . . . . 1 . . . Thug 1 | . . . 1 . . . . Butcher 1 | . . . . . 1 . . Best Kill Streak 9 | . . 2 6 9 4 . . Combat Bots Only 8 | . . 2 5 8 4 . . Max Kills in Single Turn 5 | . . 2 4 5 3 . . Gunslinging . | . . . . . . . . Exploded 5 | . . 2 3 5 3 . . Melee . | . . . . . . . . Uniques/NPCs Destroyed . | . . . . . . . . Combat | -11 -10 -10 -9 -8 -8 -8 -8 -------- Run | Jun Mat Min Mat Mat Gar Mat Gar Damage Taken 4012 | . . 21 659 1649 1508 81 94 Core 640 | . . . 79 175 226 81 79 Absorbed by Shields 25 | . . . . . . . 25 Core Remaining (%) 93 | 100 . 100 80 . . . . Volleys Fired 295 | . . 3 54 83 145 10 . Largest 4 | . . 2 2 4 3 1 . Hottest 205 | . . 66 94 205 136 5 . Shots Fired 457 | . . 4 81 181 181 10 . Gun 133 | . . . 26 37 70 . . Cannon 221 | . . . 3 124 94 . . Launcher 93 | . . 4 52 20 17 . . Special 10 | . . . . . . 10 . Kinetic 197 | . . . 3 65 129 . . Thermal 37 | . . . 26 11 . . . Explosive 33 | . . . 4 12 17 . . Electromagnetic 180 | . . 4 48 93 35 . . Robot Hit Streak 37 | . . . 7 11 37 6 . Robot Miss Streak 8 | . . . 5 8 4 2 . Penetration Max 1 | . . . . 1 1 . . Secondary Targets . | . . . . . . . . Shots Hit Robots 271 | . . . 35 108 122 6 . Core Hits 199 | . . 3 37 87 72 . . Critical Kills . | . . . . . . . . Critical Parts Destroyed . | . . . . . . . . Critical Strikes 7 | . . . 3 3 1 . . Burn 3 | . . . 3 . . . . Blast 3 | . . . . 2 1 . . Corrupt 1 | . . . . 1 . . . Melee Attacks . | . . . . . . . . Impact . | . . . . . . . . Slashing . | . . . . . . . . Piercing . | . . . . . . . . Sneak Attacks . | . . . . . . . . Combat Hostiles . | . . . . . . . . Follow-up Attacks . | . . . . . . . . Damage Inflicted 9579 | . . 70 1511 4285 3713 . . Guns 1042 | . . . 225 342 475 . . Cannons 4968 | . . . 44 2732 2192 . . Explosions 3483 | . . 70 1242 1211 960 . . Melee . | . . . . . . . . Ramming 86 | . . . . . 86 . . Kinetic 3318 | . . . 44 1315 1959 . . Thermal 514 | . . 30 351 133 . . . Explosive 2132 | . . . 221 951 960 . . Electromagnetic 3529 | . . 40 895 1886 708 . . Impact . | . . . . . . . . Slashing . | . . . . . . . . Piercing . | . . . . . . . . Highest Corruption 12 | . . . . . 12 12 12 Average Corruption 3 | . . . . . 2 12 12 Corruption Purged . | . . . . . . . . Corruption Blocked . | . . . . . . . . Effects 61 | . . . . . 52 8 1 Message Errors 12 | . . . . . 10 2 . Matter Fused 13 | . . . . . 12 1 . Heat Flow Errors 3 | . . . . . 3 . . Energy Discharges 12 | . . . . . 9 3 . Parts Rejected 1 | . . . . . . 1 . Parts Fused 1 | . . . . . 1 . . Data Loss (minor) 11 | . . . . . 10 1 . Data Loss (major) 2 | . . . . . 1 . 1 Misfires 3 | . . . . . 3 . . Alerts 2 | . . . . . 2 . . Weapon Failures 1 | . . . . . 1 . . Overload Shots . | . . . . . . . . Overflow Damage 198 | . . . 24 134 40 . . Projectiles 103 | . . . . 63 40 . . Explosions 95 | . . . 24 71 . . . Melee . | . . . . . . . . Knockbacks 33 | . . . 1 25 7 . . Impact 1 | . . . . . 1 . . Kinetic 30 | . . . 1 23 6 . . Secondary 2 | . . . . 2 . . . Self-Inflicted Damage 293 | . . 8 166 84 35 . . Shots 22 | . . 1 14 6 1 . . Rammed 25 | . . . . . 25 . . Targets Rammed 25 | . . . . . 25 . . Kicked . | . . . . . . . . Crushed . | . . . . . . . . Highest Temperature 526 | . 286 9 131 395 526 . . Average Temperature 119 | . 142 6 49 126 137 . . Received Heat Transfer 1169 | . . . 168 567 369 18 47 Effects 33 | . 1 . . . 32 . . Shutdowns 8 | . . . . . 8 . . Energy Bleed 9 | . 1 . . . 8 . . Interference 7 | . . . . . 7 . . Matter Decay 2 | . . . . . 2 . . Short Circuit 1 | . . . . . 1 . . Damage (minor) 2 | . . . . . 2 . . Damage (major) 4 | . . . . . 4 . . Siege Activations . | . . . . . . . . Robots Corrupted 4 | . . . 1 1 2 . . Combat Hostiles 1 | . . . 1 . . . . Parts Fried 23 | . . . 8 11 4 . . Impact Corruptions . | . . . . . . . . Robots Melted . | . . . . . . . . Combat Hostiles . | . . . . . . . . Parts Melted 2 | . . . 1 1 . . . Heat Transferred 1560 | . . 50 1188 322 . . . Parts Sabotaged . | . . . . . . . . Parts Stolen . | . . . . . . . . Parts Stripped . | . . . . . . . . Power Chain Reactions 8 | . . 1 6 1 . . . Missiles Intercepted . | . . . . . . . . Alert | -11 -10 -10 -9 -8 -8 -8 -8 ------- Run | Jun Mat Min Mat Mat Gar Mat Gar Peak Influence 2951 | . 7 60 483 661 2951 1382 746 Initial 1438 | . . 2 3 149 429 1438 716 Average 913 | . . 48 194 238 1500 1188 725 Maximum Alert Level 5 | . . . 2 2 5 4 3 Low Security (%) 27 | 100 100 100 53 53 . . . Level 1 10 | . . . 42 22 . . . Level 2 15 | . . . 3 23 17 . . Level 3 7 | . . . . . 14 . 100 Level 4 16 | . . . . . 25 100 . Level 5 22 | . . . . . 42 . . High Security . | . . . . . . . . Max Security . | . . . . . . . . Squads Dispatched 15 | . 1 1 2 10 . 1 . Investigation 5 | . 1 . . 4 . . . Extermination . | . . . . . . . . Reinforcement 6 | . . . 2 3 . 1 . Assault 1 | . . 1 . . . . . Garrison 3 | . . . . 3 . . . Intercept . | . . . . . . . . Searches Triggered . | . . . . . . . . Construction Impeded . | . . . . . . . . Haulers Reinforced . | . . . . . . . . Active Scanning Responses . | . . . . . . . . Cargo Convoy Interrupts . | . . . . . . . . Stealth | -11 -10 -10 -9 -8 -8 -8 -8 --------- Run | Jun Mat Min Mat Mat Gar Mat Gar Distress Signals 6 | . . . 4 1 . 1 . Communications Jammed . | . . . . . . . . Distress Signals . | . . . . . . . . Times Spotted 125 | . . 2 35 52 24 10 2 Peak Tracking Total 7 | . . 2 5 6 7 5 3 Tactical Retreats 8 | . . . 1 4 1 1 1 Traps | -11 -10 -10 -9 -8 -8 -8 -8 ------- Run | Jun Mat Min Mat Mat Gar Mat Gar Traps Triggered 12 | . 1 . . 1 9 . 1 Indirectly . | . . . . . . . . Trap Hack Attempts . | . . . . . . . . Triggered . | . . . . . . . . Disarmed . | . . . . . . . . Reprogrammed . | . . . . . . . . Reused . | . . . . . . . . Traps Extracted . | . . . . . . . . Installed . | . . . . . . . . Triggered 1 | . . 1 . . . . . Machines | -11 -10 -10 -9 -8 -8 -8 -8 ---------- Run | Jun Mat Min Mat Mat Gar Mat Gar Machines Disabled 13 | . . . 3 4 6 . . Max in Single Turn 1 | . . . 1 1 1 . . Garrison Relay 4 | . . . . . 4 . . Machines Repaired . | . . . . . . . . Machines Sabotaged . | . . . . . . . . Overloaded Fab Kills . | . . . . . . . . Hacking | -11 -10 -10 -9 -8 -8 -8 -8 --------- Run | Jun Mat Min Mat Mat Gar Mat Gar Machines Accessed 18 | . 2 . 3 7 2 4 . Terminals 15 | . 2 . 3 5 2 3 . Fabricators . | . . . . . . . . Repair Stations . | . . . . . . . . Recycling Units . | . . . . . . . . Scanalyzers 1 | . . . . 1 . . . Garrison Access 2 | . . . . 1 . 1 . Total Hacks 51 | . 6 . 7 22 4 12 . Successful 21 | . 2 . 4 10 1 4 . Failed 30 | . 4 . 3 12 3 8 . Catastrophic 7 | . 1 . . 4 1 1 . Database Lockouts . | . . . . . . . . Manual 25 | . 7 . 4 6 . 8 . Terminals 45 | . 6 . 7 17 4 11 . Fabricators . | . . . . . . . . Repair Stations . | . . . . . . . . Recycling Units . | . . . . . . . . Scanalyzers 4 | . . . . 4 . . . Garrison Access 2 | . . . . 1 . 1 . Terminal Hacks 13 | . 2 . 3 5 1 2 . Robot Schematic 2 | . 2 . . . . . . Emergency Access Points 1 | . . . . . 1 . . Alert Level 3 | . . . 1 2 . . . Unreport Threat 5 | . . . 2 2 . 1 . Recall Reinforcements 1 | . . . . . . 1 . Zone Layout 1 | . . . . 1 . . . Fabricator Hacks . | . . . . . . . . Repair Station Hacks . | . . . . . . . . Recycling Unit Hacks . | . . . . . . . . Scanalyzer 3 | . . . . 3 . . . Insert Component 2 | . . . . 2 . . . Analyze 1 | . . . . 1 . . . Garrison Access Hacks 2 | . . . . 1 . 1 . Unlock Access 2 | . . . . 1 . 1 . Unauthorized Hacks 3 | . . . 1 1 . 1 . Terminals 3 | . . . 1 1 . 1 . Botnet 3 | . . . 1 1 . 1 . Fabricators . | . . . . . . . . Repair Stations . | . . . . . . . . Recycling Units . | . . . . . . . . Scanalyzers . | . . . . . . . . Garrison Access . | . . . . . . . . Data Cores Recovered . | . . . . . . . . Used . | . . . . . . . . Hacking Detections 16 | . 2 . 2 7 2 3 . Full Trace Events 5 | . . . . 3 1 1 . Feedback Events . | . . . . . . . . Feedback Blocked . | . . . . . . . . Robot Schematics Acquired 2 | . 2 . . . . . . Robots Built . | . . . . . . . . Authchips . | . . . . . . . . Time . | . . . . . . . . Total Robot Build Rating . | . . . . . . . . Part Schematics Acquired 1 | . . . . 1 . . . Parts Built . | . . . . . . . . Authchips . | . . . . . . . . Time . | . . . . . . . . Total Part Build Rating . | . . . . . . . . Parts Repaired . | . . . . . . . . Time . | . . . . . . . . Parts Recycled . | . . . . . . . . Recycled Matter . | . . . . . . . . Retrieved Matter . | . . . . . . . . Retrieved Components . | . . . . . . . . Parts Scanalyzed 2 | . . . . 2 . . . Part Schematics Acquired 1 | . . . . 1 . . . Parts Damaged . | . . . . . . . . Bothacking | -11 -10 -10 -9 -8 -8 -8 -8 ------------ Run | Jun Mat Min Mat Mat Gar Mat Gar Used RIF Installer 1 | . . . . . 1 . . Robots Hacked 3 | . . . . . . 3 . Non-combat 2 | . . . . . . 2 . Combat 1 | . . . . . . 1 . Robot Hacks Applied 4 | . . . . . . 4 . purge_threat 2 | . . . . . . 2 . map_route 1 | . . . . . . 1 . streamctrl_high 1 | . . . . . . 1 . Relay Couplers Released 20 | . . . . . 20 . . Machine Destruction 16 | . . . . . 16 . . Programmers 4 | . . . . . 4 . . Attached 4 | . . . . . . 4 . Fabnet Peak Effective % . | . . . . . . . . Robots Rewired . | . . . . . . . . Allies Hacked . | . . . . . . . . Hacks Repelled . | . . . . . . . . Allies | -11 -10 -10 -9 -8 -8 -8 -8 -------- Run | Jun Mat Min Mat Mat Gar Mat Gar Total Allies 4 | . . 2 . . 1 1 . Largest Group 2 | . . 2 2 . 1 1 . Highest-Rated Group 90 | . . 62 62 . 39 90 . Highest-Rated Ally 90 | . . 31 31 . 39 90 . Total Orders . | . . . . . . . . Ally Attacks 61 | . . . 44 . 4 13 . Total Damage 950 | . . . 438 . 58 454 . Kills 16 | . . . 10 . 1 5 . Allies Corrupted . | . . . . . . . . Allies Melted . | . . . . . . . . Intel | -11 -10 -10 -9 -8 -8 -8 -8 ------- Run | Jun Mat Min Mat Mat Gar Mat Gar Robot Analysis Total . | . . . . . . . . Derelict Logs Recovered 1 | . . 1 . . . . . Drone Launches . | . . . . . . . . Drone Recoveries . | . . . . . . . . Exploration | -11 -10 -10 -9 -8 -8 -8 -8 ------------- Run | Jun Mat Min Mat Mat Gar Mat Gar Turns Passed 7892 | 55 136 414 888 1980 4169 229 21 Spaces Moved 3035 | 50 111 295 372 601 1361 225 20 Core 247 | 1 . . . . 1 225 20 Treads 1545 | . . . 97 601 847 . . Legs . | . . . . . . . . Wheels 1243 | 49 111 295 275 . 513 . . Hover . | . . . . . . . . Flight . | . . . . . . . . Fastest Speed 50 | 50 90 135 150 240 120 50 50 Average Speed 214 | 88 103 135 185 266 258 50 50 Slowest Speed 1500 | 90 135 135 320 325 1500 50 50 Overloaded Moves . | . . . . . . . . Propulsion Burnouts . | . . . . . . . . Robots Hopped . | . . . . . . . . Cave-ins Triggered . | . . . . . . . . Exploration Rate (%) 39 | 3 23 59 45 64 91 22 5 Regions Visited 7 Branch Regions 1 Pre-discovered Areas . | . . . . . . . . Known Exits Taken 2 | . . . . 1 . 1 . Unknown Exits Taken 4 | 1 1 1 1 . . . . Scrap Searched . | . . . . . . . . Spaces Dug 23 | . . 3 . . 20 . . Terrain Destroyed 236 | . . 3 37 105 91 . . Melee . | . . . . . . . . Projectile 17 | . . . . 7 10 . . AOE 219 | . . 3 37 98 81 . . Terrain Rammed . | . . . . . . . . Walls Destroyed . | . . . . . . . . Machines Disabled . | . . . . . . . . Actions | -11 -10 -10 -9 -8 -8 -8 -8 --------- Run | Jun Mat Min Mat Mat Gar Mat Gar Total 3917 | 59 131 306 493 815 1747 335 31 Wait 298 | . . 6 29 70 102 91 . Move 3029 | 49 110 294 371 601 1359 225 20 Hop . | . . . . . . . . Pick Up 79 | 7 12 2 18 14 24 2 . Fast Attach 17 | 3 2 . 1 5 2 4 . Attach 39 | . 3 . 11 8 16 1 . Detach 3 | . . . 1 . 2 . . Swap 28 | . 2 1 2 16 6 1 . Drop 33 | . 2 . 6 18 6 1 . Fire 295 | . . 3 54 83 145 10 . Melee . | . . . . . . . . Ram . | . . . . . . . . Kick . | . . . . . . . . Crush 25 | . . . . . 25 . . Escape Stasis 59 | . . . . . 48 . 11 Rewire 12 | . . . . . 12 . . Trap . | . . . . . . . . Miscellaneous . | . . . . . . . . Route ------- -11/Junkyard -10/Materials -10/Mines -9/Materials -8/Materials (discovered 2 exits: [*Fac] / Gar) -8/Garrison (discovered 3 exits: *Mat x3) -8/Materials -8/Garrison History --------- Turn | Location | Event 13 | -11/Junkyard | Discovered new exit (range 16) 56 | -11/Junkyard | Entered Materials 168 | -10/Materials | Discovered new exit (range 16) 192 | -10/Materials | Entered Mines 310 | -10/Mines | Build established: Mutant 438 | -10/Mines | Received a Mining Laser from a helpful Derelict 462 | -10/Mines | Met a Derelict testing a Signal Generator 592 | -10/Mines | Learned Materials security intel 593 | -10/Mines | Discovered new exit (range 6) 606 | -10/Mines | Entered Materials 606 | -9/Materials | Accompanied by 2 allies 606 | -9/Materials | Evolved 2 slots: Power x1, Weapon x1 1062 | -9/Materials | Lost 3 parts (2p1n) 1240 | -9/Materials | Lost 4 parts (1n1u2w) 1369 | -9/Materials | Discovered new exit (range 3) 1494 | -9/Materials | Entered another Materials area 1494 | -8/Materials | Evolved 2 slots: Utility x1, Weapon x1 1664 | -8/Materials | Destroyed 8 combat bots 1667 | -8/Materials | Lost 3 parts (1p2w) 2707 | -8/Materials | Discovered new exit (range 11) 3274 | -8/Materials | Garrison activated, responded to threat 3474 | -8/Materials | Identified exit to Garrison 3474 | -8/Materials | Entered Garrison 3586 | -8/Garrison | Triggered checkpoint 3932 | -8/Garrison | Build established: Scavenger-Mutant 4114 | -8/Garrison | Triggered checkpoint 4153 | -8/Garrison | Triggered checkpoint 4209 | -8/Garrison | Core integrity fell below 50% 4246 | -8/Garrison | Lost 3 parts (1n1u1w) 4421 | -8/Garrison | Discovered new exit (range 11) 4498 | -8/Garrison | Triggered checkpoint 4600 | -8/Garrison | Rescued a captive Derelict 4818 | -8/Garrison | Garrison Relay disabled 4980 | -8/Garrison | Discovered new exit (range 13) 5132 | -8/Garrison | Build established: Tank 5572 | -8/Garrison | Triggered checkpoint 5857 | -8/Garrison | Build established: Mutant 5930 | -8/Garrison | Triggered checkpoint 5980 | -8/Garrison | Discovered new exit (range 15) 5995 | -8/Garrison | Lost 3 parts (1n1u1w) 6353 | -8/Garrison | Installed Relay Interface Framework 7203 | -8/Garrison | Garrison Relay disabled 7442 | -8/Garrison | Garrison Relay disabled 7518 | -8/Garrison | Build established: Bothacker-Mutant 7634 | -8/Garrison | System corruption reached 10% 7643 | -8/Garrison | Entered Materials 7643 | -8/Materials | Released all parts (10) 7674 | -8/Materials | Lost 7 parts (1p1n4u1w) 7728 | -8/Materials | Core integrity fell below 20% 7872 | -8/Materials | Identified exit to Garrison 7872 | -8/Materials | Entered Garrison 7882 | -8/Garrison | Triggered checkpoint 7893 | -8/Garrison | Destroyed by Y-45 Defender with Beam Rifle Last Messages --------------- GOAL=ESCAPE 07872_ Detecting nearby RIF Installer. 07876_ Triggered Stasis Trap. 07876_ A bubble of rippling energy engulfs the area. 07876_ Field strength at 94. 07876_ Field strength at 88. 07877_ Field strength at 82. 07878_ Field strength at 76. 07879_ Field strength at 70. 07880_ Field strength at 64. 07881_ Field strength at 58. 07882_ Beams of light sweep through the air. An alarm sounds. 07882_ Field strength at 48. 07883_ Field strength at 42. 07884_ Field strength at 32. 07885_ System corrupted: Substantial component data lost. 07885_ Field strength at 17. 07886_ Field strength at 11. 07887_ Critical hit (Burn: +27). 07887_ Stasis field depleted. Map ----- +----------------------------------------------------+ | ?????????????????????????????????????????????????? | | ?????????????????????????????????????????????????? | | ?????????????????????????????????????????????????? | | ?????????????????????????????????????????????????? | | ?????????????????????????????????????????????????? | | ?????????????????????????????????????????????????? | | ?????????????????????????????????????????????????? | | ?????????????????????????????????????????????????? | | ?????????????????????????????????????????????????? | | ?????????????????????????????????????????????????? | | ?????????????????????????????????????????????????? | | ?????????????????????????????????????????????????? | | ?????????????????????????????????????????????????? | | ?????????????????????????????????????????????????? | | ?????????????????????????????????????????????????? | | ?????????????????????????????????????????????????? | | ?????????????????????????????????????????????????? | | ?????????????????????????????????????????????????? | | ?????????????????????????????????????????????????? | | ?????????????????????????????????????????????????? | | ?????????????????????????????????????????????????? | | ?????????????????????????????????????????????????? | | ??????????????????????????????????#####??????????? | | ??????????????????????????????????# #??????????? | | ?????????????????##"""#####"""##### ##########?? | | ?????????? @ Y #?? | | ?????????? ^ #?? | | ?????????? #?? | | ???????????################################# #?? | | ???????????????????????????????????????????# #?? | | ???????????????????????????????????????????#####?? | | ?????????????????????????????????????????????????? | | ?????????????????????????????????????????????????? | | ?????????????????????????????????????????????????? | | ?????????????????????????????????????????????????? | | ?????????????????????????????????????????????????? | | ?????????????????????????????????????????????????? | | ?????????????????????????????????????????????????? | | ?????????????????????????????????????????????????? | | ???????????????????????????????????????????""""??? | | ??????????????????????????????????????????????"??? | | ???????????????????????????????????????????""""??? | | ?????????????????????????????????????????????????? | | ?????????????????????????????????????????????????? | | ?????????????????????????????????????????????????? | | ?????????????????????????????????????????????????? | | ?????????????????????????????????????????????????? | | ?????????????????????????????????????????????????? | | ?????????????????????????????????????????????????? | | ?????????????????????????????????????????????????? | +----------------------------------------------------+ Best States ------------- Heat Dissipation 45 Energy Generation 29 Energy Capacity 460 Matter Stores 300 Matter Capacity 300 Sight Range 16 Terrain Scan Density 10 Armor Coverage 600 Evasion (%) 50 Recoil Reduction 2 Defensive Hacking 10 Relay Coupler Types 2 Relay Coupler Value 59 Authchip Count 3 Item Schematics ----------------- Arm. Treads | -8/Materials | Scanalyzed Robot Schematics ------------------ M-13 Machinist | -10/Materials | Hacked O-16 Technician | -10/Materials | Hacked Fabricated ------------ Nothing Alien Tech Used ----------------- None Achievements -------------- None Challenges ------------ None Game ------ Seed ActuatorBottomlessWings Manual? 0 Play Time 01:06:47 Cumulative 288.1 hours Start 2023.09.13 @ 09:05:18 End 2023.09.13 @ 10:15:18 Sessions 1 Manual Loads 0 Difficulty Rogue Special Mode None Game No. 196 Rogue 193 Adventurer 3 Explorer 0 Win Type - Total 5 Types 4/0/1/0/0/0/0/0/0 Lore% 71 Gallery% 75 Achievement% 64 Wizard Run 0 Options --------- ASCII 0 Keyboard 0 Movement Numpad Keybinds 0 Fullscreen 1 Font 18/SmallcapsGlow Map View 76x50 Tactical HUD 1 Map Filters NONE Filters NONE Steam 1 RUN: 617cf031-1463-433e-9771-dec72871feae